bitfinex/quotes_SOLUSD_20260304
["timestamp","ask_amount","ask_price","bid_price","bid_amount"]
[1772657551340,2.81174337,93.234,93.19,10.7307651]
[1772657552924,2.81174337,93.234,93.179,29.55169442]
[1772657552925,2.81455135,93.232,93.181,2.7216324]
[1772657554031,10.72535492,93.238,93.181,2.7216324]
[1772657554551,2.81727488,93.242,93.181,2.7216324]
[1772657555926,10.7248957,93.241,93.183,2.7216324]
[1772657556122,2.82347725,93.24,93.183,2.7216324]
[1772657556542,2.82347725,93.24,93.171,2.7216324]
[1772657556543,2.82347725,93.226,93.171,2.7216324]
[1772657556726,2.82347725,93.224,93.171,2.7216324]
[1772657557539,2.82833137,93.219,93.171,40.28696924]
[1772657557738,3.11265451,93.219,93.171,40.28696924]
[1772657558437,3.11265451,93.219,93.172,2.7216324]
[1772657560245,3.119781,93.217,93.174,2.7216324]
[1772657561744,3.119781,93.217,93.173,10.73272299]
[1772657562169,3.119781,93.217,93.168,10.73329005]
[1772657562354,42.89989192,93.241,93.127,2.7216324]
[1772657562355,3.12523645,93.215,93.127,2.7216324]
[1772657562653,3.12523645,93.201,93.13,2.7216324]
[1772657562955,3.12523645,93.201,93.127,2.7216324]
[1772657563149,3.12523645,93.201,93.126,37.58348903]
[1772657563150,3.12601507,93.196,93.126,10.73813972]
[1772657563344,3.12601507,93.194,93.126,37.58348903]
[1772657563544,0.28432314,93.175,93.126,13.45977212]
[1772657563739,2.84169193,93.164,93.126,13.45977212]
[1772657564541,0.14216157,93.165,93.126,13.45977212]
[1772657564542,13.57645633,93.162,93.126,13.45977212]
[1772657564737,24.2264794,93.163,93.128,2.7216324]
[1772657564937,2.84246608,93.182,93.128,2.7216324]
[1772657566348,10.7315712,93.183,93.128,2.7216324]
[1772657566741,2.84391649,93.183,93.13,2.7216324]
[1772657569045,26.82638453,93.192,93.132,2.82249454]
[1772657569046,2.84612404,93.192,93.132,2.82249454]
[1772657569249,2.84680701,93.214,93.135,3.10681768]
[1772657569451,3.13113015,93.213,93.135,3.10681768]
[1772657569653,2.98896858,93.213,93.135,3.10681768]
[1772657569857,0.14216157,93.212,93.135,3.10681768]
[1772657570056,2.84680701,93.205,93.135,3.10681768]
[1772657570254,2.84680701,93.205,93.135,2.82249454]
[1772657571553,3.13604486,93.203,93.137,2.82249454]
[1772657574155,37.5528422,93.202,93.138,10.73675621]
[1772657574361,3.14155535,93.201,93.139,2.82249454]
[1772657574671,3.14155535,93.201,93.138,10.73675621]
[1772657575051,3.14155535,93.201,93.139,2.82249454]
[1772657576873,3.14270248,93.199,93.14,10.73652566]
[1772657577260,3.14270248,93.199,93.141,2.82249454]
[1772657578169,0.28432314,93.191,93.141,2.82249454]
[1772657578377,2.85950837,93.184,93.141,2.82249454]
[1772657580380,2.85724706,93.182,93.142,10.73629511]
[1772657580580,2.85724706,93.182,93.143,2.82249454]
[1772657580976,10.7315712,93.183,93.143,2.82249454]
[1772657581164,2.8578461,93.182,93.143,2.82249454]
[1772657581365,37.56049922,93.183,93.111,2.82249454]
[1772657581366,2.8578461,93.166,93.111,2.82249454]
[1772657581672,2.8578461,93.166,93.054,164.2]
[1772657581673,2.8578461,93.136,93.11,1e-08]
[1772657581865,0.28432314,93.133,93.083,2.82249454]
[1772657582064,2.85846788,93.114,93.083,2.82249454]
[1772657582380,3.69383402,93.154,93.052,2.82249454]
[1772657582381,2.85846788,93.106,93.052,2.82249454]
[1772657582674,3.14279102,93.112,93.053,2.82249454]
[1772657582878,30.0,93.105,93.053,2.82249454]
[1772657583554,3.14279102,93.112,93.053,2.82249454]
[1772657584483,3.14396434,93.11,93.055,2.82249454]
[1772657584884,3.14396434,93.11,93.045,2.82249454]
[1772657585175,3.14396434,93.102,93.042,2.82249454]
[1772657585771,30.0,93.103,93.048,2.82249454]
[1772657585970,37.58954365,93.111,93.048,2.82249454]
[1772657586180,10.73986961,93.111,93.048,2.82249454]
[1772657586484,10.73986961,93.111,93.041,134.34937284]
[1772657586485,3.00297504,93.11,93.05,2.82249454]
[1772657586675,0.14216157,93.109,93.05,2.82249454]
[1772657586877,0.28432314,93.107,93.05,2.82249454]
[1772657587063,3.14225682,93.107,93.05,2.82249454]
[1772657588563,3.00065331,93.105,93.052,2.82249454]
[1772657589279,2.85849174,93.105,93.052,2.82249454]
[1772657589584,2.8590477,93.126,93.052,2.82249454]
[1772657589884,2.8590477,93.172,93.055,3.10681768]
[1772657590185,2.86314891,93.169,93.055,3.10681768]
[1772657590387,2.86314891,93.169,93.073,2.82249454]
[1772657590689,2.86314891,93.161,93.086,2.82249454]
[1772657591692,2.86314891,93.161,93.085,3.69383402]
[1772657591693,2.86363747,93.167,93.092,2.82249454]
[1772657592371,2.86363747,93.167,93.085,3.69383402]
[1772657592372,2.86412123,93.207,93.1,2.82249454]
[1772657592574,2.86412123,93.201,93.105,2.82249454]
[1772657592779,2.86412123,93.197,93.105,2.82249454]
[1772657592983,0.14216157,93.192,93.105,2.82249454]
[1772657593181,2.86459502,93.186,93.111,2.82249454]
[1772657594367,2.8650603,93.182,93.111,2.82249454]
[1772657594569,2.8650603,93.172,93.113,2.82249454]
[1772657596682,10.73191672,93.18,93.115,2.82249454]
[1772657596996,2.86957913,93.171,93.115,2.82249454]
[1772657599716,2.87124558,93.169,93.117,2.80088833]
[1772657600577,2.87166299,93.161,93.107,2.80088833]
[1772657600777,2.87166299,93.151,93.1,10.74106333]
[1772657600975,2.87166299,93.151,93.097,2.80088833]
[1772657601280,2.87208608,93.141,93.083,2.80088833]
[1772657601590,2.87208608,93.131,93.083,2.80088833]
[1772657601775,2.87208608,93.129,93.083,2.80088833]
[1772657602693,2.8725158,93.121,93.074,2.80088833]
[1772657603279,37.58187479,93.13,93.05,2.80088833]
[1772657603479,2.87291821,93.129,93.05,2.80088833]
[1772657603685,2.87291821,93.127,93.052,2.80088833]
[1772657604597,2.87291821,93.127,93.055,2.80088833]
[1772657606096,10.73813972,93.126,93.056,37.61176065]
[1772657606304,10.73813972,93.126,93.057,2.7834889]
[1772657606908,37.58348903,93.126,93.057,2.7834889]
[1772657607505,10.73813972,93.126,93.057,2.7834889]
[1772657607704,10.73813972,93.126,93.061,2.7834889]
[1772657607899,13.61308512,93.126,93.061,2.7834889]
[1772657608108,10.73710205,93.135,93.066,2.7834889]
[1772657608285,40.45178015,93.135,93.066,2.7834889]
[1772657608606,2.87192296,93.134,93.066,2.7834889]
[1772657610303,2.87192296,93.134,93.056,107.4621733]
[1772657610304,2.8727934,93.154,93.074,3.06781204]
[1772657610709,2.8727934,93.154,93.074,2.7834889]
[1772657610904,2.8727934,93.152,93.074,2.7834889]
[1772657612808,2.87362762,93.15,93.076,2.7834889]
[1772657613510,2.87402973,93.15,93.076,2.7834889]
[1772657614193,2.87100393,93.142,93.076,2.7834889]
[1772657614389,2.87100393,93.142,93.075,10.74402363]
[1772657614390,2.87100393,93.132,93.075,10.74402363]
[1772657614593,2.87100393,93.132,93.07,10.74454411]
[1772657615113,3.15532707,93.13,93.07,2.7834889]
[1772657615614,3.15578579,93.128,93.07,2.7834889]
[1772657617220,3.1567306,93.126,93.041,2.7834889]
[1772657617417,3.1567306,93.126,93.046,2.7834889]
[1772657619294,3.1567306,93.126,93.045,26.86861476]
[1772657619295,3.15761169,93.124,93.048,2.7834889]
[1772657622820,3.15761169,93.124,93.05,2.7834889]
[1772657622821,3.15752213,93.122,93.05,2.7834889]
[1772657623925,0.28432314,93.107,93.014,2.7834889]
[1772657624129,0.28432314,93.085,93.014,2.7834889]
[1772657624421,2.77134213,93.052,92.992,2.7834889]
[1772657624607,4.82477569,93.085,92.992,2.7834889]
[1772657624608,0.28432314,93.043,92.992,2.7834889]
[1772657624810,2.77134213,93.04,92.992,2.7834889]
[1772657625112,2.77134213,93.04,92.979,26.88758242]
[1772657625113,2.77134213,93.04,92.993,10.75349757]
[1772657625305,2.77134213,93.04,92.994,2.7834889]
[1772657626347,37.61782439,93.041,92.994,2.7834889]
[1772657626348,3.05397357,93.035,92.994,2.7834889]
[1772657626632,10.74794982,93.041,92.994,2.7834889]
[1772657627330,2.76883658,93.041,92.996,2.7834889]
[1772657628434,3.05231703,93.077,92.996,2.7834889]
[1772657629536,3.01212855,93.075,92.998,2.92904504]
[1772657630241,2.72780541,93.07,92.998,2.92904504]
[1772657630430,104.9,93.074,92.998,2.92904504]
[1772657630431,2.72780541,93.068,92.998,2.92904504]
[1772657630805,2.72780541,93.062,92.998,2.92904504]
[1772657631531,2.72780541,93.06,93.0,2.92904504]
[1772657632112,2.72780541,93.052,93.0,2.92904504]
[1772657634128,37.89406298,93.061,93.002,2.92904504]
[1772657634129,2.72780541,93.05,93.002,2.92904504]
[1772657635230,2.72780541,93.081,93.005,2.92904504]
[1772657635431,2.72780541,93.091,93.017,2.92904504]
[1772657635621,10.74203461,93.093,93.021,2.92904504]
[1772657636249,10.74203461,93.093,93.001,177.41744711]
[1772657636250,2.72780541,93.092,93.026,2.92904504]
[1772657636545,2.72780541,93.086,93.026,2.92904504]
[1772657636751,2.72780541,93.082,93.026,2.92904504]
[1772657637358,2.72780541,93.082,92.977,43.02113212]
[1772657637359,2.72780541,93.08,93.016,2.92904504]
[1772657637550,2.72780541,93.08,92.942,43.03753059]
[1772657637551,2.72780541,93.062,93.008,2.92904504]
[1772657637728,2.72780541,93.052,93.009,10.75164769]
[1772657638055,2.72780541,93.052,93.001,2.92904504]
[1772657638232,2.72780541,93.05,93.003,2.92904504]
[1772657639727,2.72780541,93.032,92.981,2.92904504]
[1772657640228,37.62186797,93.031,92.982,10.75476974]
[1772657640433,2.72780541,93.03,92.983,2.92904504]
[1772657641532,10.74910513,93.031,92.983,2.92904504]
[1772657642051,2.72780541,93.093,92.986,2.92904504]
[1772657642356,2.72780541,93.093,92.985,3.69383402]
[1772657642357,0.28432314,93.079,92.988,2.92904504]
[1772657642649,2.72780541,93.08,92.987,37.63967005]
[1772657642650,2.72780541,93.08,92.995,2.92904504]
[1772657642848,2.72780541,93.08,93.001,2.92904504]
[1772657643144,37.5988312,93.088,93.011,2.92904504]
[1772657643145,10.7425232,93.088,93.011,2.92904504]
[1772657643347,2.72780541,93.087,93.011,2.92904504]
[1772657644448,10.74275401,93.086,93.016,2.92904504]
[1772657645152,10.74275401,93.086,93.02,2.92904504]
[1772657645749,2.72780541,93.085,93.02,2.92904504]
[1772657645949,10.74275401,93.086,93.02,2.92904504]
[1772657645950,2.72780541,93.081,93.02,2.92904504]
[1772657646943,2.72780541,93.079,93.022,2.92904504]
[1772657647459,2.72780541,93.092,93.022,2.92904504]
[1772657647652,2.72780541,93.092,93.025,2.92904504]
[1772657649137,2.72780541,93.09,93.027,2.92904504]
[1772657650358,2.72780541,93.09,93.026,37.62389009]
[1772657650359,2.72780541,93.103,93.03,2.92904504]
[1772657650567,42.94637279,93.14,93.03,2.92904504]
[1772657650568,2.72780541,93.101,93.03,2.92904504]
[1772657650960,2.72780541,93.099,93.032,2.92904504]
[1772657651459,2.72780541,93.099,93.035,2.92904504]
[1772657652338,2.72780541,93.099,93.036,91.36248332]
[1772657652543,2.72780541,93.11,93.037,2.92904504]
[1772657652745,13.46779037,93.11,93.038,0.28432314]
[1772657652949,10.73953577,93.114,93.043,2.92904504]
[1772657653664,2.72780541,93.113,93.043,2.92904504]
[1772657654264,2.72780541,93.118,93.043,2.92904504]
[1772657654647,10.73917759,93.117,93.051,2.92904504]
[1772657655564,2.72780541,93.116,93.051,2.92904504]
[1772657655768,2.72780541,93.142,93.061,2.92904504]
[1772657656859,2.72780541,93.14,93.066,2.92904504]
[1772657657168,0.28432314,93.139,93.066,2.92904504]
[1772657657352,2.72780541,93.132,93.066,2.92904504]
[1772657658039,0.28432314,93.128,93.066,2.92904504]
[1772657658359,2.72780541,93.111,93.062,10.74552448]
[1772657658658,0.28432314,93.102,93.047,2.8395449]
[1772657658856,2.74584305,93.101,93.047,2.8395449]
[1772657659066,2.74192421,93.091,93.039,13.58772577]
[1772657659559,2.74192421,93.091,93.039,10.74818087]
[1772657659769,2.74192421,93.081,93.029,10.74933622]
[1772657660067,2.74192421,93.081,93.03,2.8395449]
[1772657660265,3.02572297,93.109,93.03,2.8395449]
[1772657660567,3.02572297,93.109,93.029,10.74933622]
[1772657660863,42.95548745,93.12,93.029,13.58888112]
[1772657660864,0.14216157,93.091,93.029,13.58888112]
[1772657661041,2.74139983,93.082,93.029,13.58888112]
[1772657661245,2.74139983,93.082,93.029,10.74933622]
[1772657661444,2.74139983,93.082,93.03,2.8395449]
[1772657662969,2.74382499,93.08,93.032,2.8395449]
[1772657665048,2.74276989,93.078,93.033,13.58841895]
[1772657665356,2.74276989,93.078,93.034,2.90717059]
[1772657666164,42.95964348,93.111,93.006,2.90717059]
[1772657666165,0.28432314,93.067,93.006,2.90717059]
[1772657666346,0.14216157,93.055,93.006,2.90717059]
[1772657666551,0.28432314,93.061,93.006,2.90717059]
[1772657666552,2.74125806,93.052,93.006,2.90717059]
[1772657667049,2.74125806,93.052,92.981,2.90717059]
[1772657667670,0.28432314,93.049,92.981,2.90717059]
[1772657667847,0.28432314,93.033,92.981,2.90717059]
[1772657668047,3.02507433,93.032,92.981,2.90717059]
[1772657668464,2.74026101,93.076,92.983,2.90717059]
[1772657668660,0.28432314,93.063,92.983,2.90717059]
[1772657668862,2.74026101,93.062,92.983,2.90717059]
[1772657669064,2.74026101,93.062,92.986,2.90717059]
[1772657670256,2.74026101,93.062,92.988,2.90717059]
[1772657670457,2.74026101,93.062,92.99,2.90717059]
[1772657670658,2.73593077,93.06,92.995,2.90717059]
[1772657671849,2.73593077,93.06,92.997,2.90717059]
[1772657672053,10.74536281,93.064,92.997,2.90717059]
[1772657672354,13.47710341,93.064,92.997,2.90717059]
[1772657672559,2.7317406,93.063,92.997,2.90717059]
[1772657674090,2.7317406,93.063,92.999,2.90717059]
[1772657674262,10.7439082,93.076,93.002,2.90717059]
[1772657674983,10.7439082,93.076,93.01,2.90717059]
[1772657675860,0.28432314,93.066,93.01,2.90717059]
[1772657676162,2.73054164,93.061,93.012,2.90717059]
[1772657678094,2.72981123,93.07,93.014,2.90717059]
[1772657680381,10.74423051,93.074,93.016,2.90717059]
[1772657680567,2.72539744,93.073,93.016,2.90717059]
[1772657681471,2.72505447,93.082,93.016,2.90717059]
[1772657682379,10.74333107,93.081,93.017,37.62753044]
[1772657682585,2.7246333,93.08,93.018,2.90717059]
[1772657684570,2.72729258,93.115,93.023,3.19149373]
[1772657684885,104.9,93.116,93.023,3.19149373]
[1772657684886,2.72729258,93.113,93.023,3.19149373]
[1772657685391,2.72684252,93.103,93.023,2.90717059]
[1772657685587,104.9,93.112,93.023,2.90717059]
[1772657685588,2.72684252,93.093,93.023,2.90717059]
[1772657686672,0.14216157,93.094,93.025,2.90717059]
[1772657686673,2.72640003,93.091,93.025,2.90717059]
[1772657689690,2.68418287,93.089,93.027,2.77705349]
[1772657689878,2.68418287,93.089,93.026,91.37230451]
[1772657689879,2.68418287,93.089,93.033,2.77705349]
[1772657690305,104.9,93.112,93.03,3.23927621]
[1772657690598,21.3957671,93.477,93.03,2.95495307]
[1772657690599,104.9,93.111,93.03,2.95495307]
[1772657690770,0.28432314,93.124,93.03,2.95495307]
[1772657691674,3.69383402,93.137,93.031,37.62186797]
[1772657691892,0.28432314,93.132,93.032,2.95495307]
[1772657692271,0.04694631,93.131,93.032,2.95495307]
[1772657694592,0.28432314,93.127,93.034,2.95495307]
[1772657694892,0.05002868,93.126,93.034,2.95495307]
[1772657695094,0.05156158,93.124,93.034,2.95495307]
[1772657695296,0.05156158,93.123,93.034,2.95495307]
[1772657696290,0.05305669,93.121,93.034,2.95495307]
[1772657696796,0.05305669,93.12,93.036,2.95495307]
[1772657696990,104.9,93.122,93.036,2.95495307]
[1772657696991,0.14216157,93.115,93.036,2.95495307]
[1772657697309,0.05451416,93.113,93.036,2.95495307]
[1772657697495,0.05451416,93.113,93.039,3.23927621]
[1772657698688,0.05596291,93.122,93.043,3.23927621]
[1772657699781,0.05596291,93.122,93.048,3.23927621]
[1772657700295,0.05596291,93.122,93.048,2.95495307]
[1772657700492,44.92026315,93.141,93.054,2.95495307]
[1772657700493,0.05880045,93.139,93.054,2.95495307]
[1772657700690,0.05880045,93.136,93.054,2.95495307]
[1772657700895,0.05880045,93.136,93.064,2.95495307]
[1772657701979,0.05880045,93.136,93.066,2.95495307]
[1772657704095,0.28432314,93.137,93.068,2.95495307]
[1772657704096,0.28432314,93.134,93.068,2.95495307]
[1772657704284,0.06782713,93.133,93.068,2.95495307]
[1772657706496,0.06782713,93.133,93.07,2.95495307]
[1772657707186,0.07160196,93.155,93.073,3.23927621]
[1772657708308,3.69383402,93.151,93.06,10.74575542]
[1772657708501,3.69383402,93.151,93.019,43.00188472]
[1772657708502,0.07283933,93.135,93.041,2.95495307]
[1772657708805,4.82477569,93.14,93.041,2.95495307]
[1772657708806,0.07283933,93.129,93.041,2.95495307]
[1772657709597,0.07283933,93.129,93.043,2.95495307]
[1772657710798,0.07283933,93.129,93.048,3.23927621]
[1772657711409,0.07283933,93.129,93.048,2.95495307]
[1772657712402,0.07283933,93.129,93.054,2.95495307]
[1772657713290,0.07283933,93.129,93.056,2.95495307]
[1772657715113,0.08351406,93.154,93.069,2.95495307]
[1772657715318,0.08351406,93.154,93.075,2.95495307]
[1772657718011,0.08351406,93.154,93.077,2.95495307]
[1772657721409,0.09546329,93.148,93.078,10.74367734]
[1772657721713,0.09546329,93.148,93.025,42.99903869]
[1772657721714,3.69383402,93.144,93.067,10.74494718]
[1772657721899,5.10909883,93.135,93.044,37.61661149]
[1772657722099,5.10909883,93.133,93.044,37.61661149]
[1772657722506,0.28432314,93.133,93.045,3.00037361]
[1772657724805,5.10909883,93.133,93.047,3.00037361]
[1772657725111,0.28432314,93.131,93.047,3.00037361]
[1772657727902,0.28432314,93.131,93.036,42.99391651]
[1772657727903,0.28432314,93.131,93.049,3.00037361]
[1772657728105,0.28432314,93.129,93.049,3.00037361]
[1772657730011,0.28432314,93.129,93.051,3.00037361]
[1772657731119,0.14216157,93.127,93.051,3.00037361]
[1772657731312,0.28432314,93.127,93.051,3.00037361]
[1772657733327,0.28432314,93.127,93.053,3.00037361]
[1772657734211,0.28432314,93.125,93.053,3.00037361]
[1772657734717,0.53728376,93.107,93.053,3.00037361]
[1772657734922,44.92026315,93.106,93.053,3.00037361]
[1772657737125,0.02069752,93.105,93.055,3.00037361]
[1772657739523,0.02240626,93.104,93.055,3.00037361]
[1772657739731,0.28432314,93.105,93.047,10.74725676]
[1772657739732,0.02240626,93.101,93.047,10.74725676]
[1772657740808,0.02240626,93.101,93.048,3.00037361]
[1772657741826,0.02240626,93.101,93.05,3.00037361]
[1772657743119,44.92026315,93.103,93.05,3.00037361]
[1772657743629,0.02250305,93.102,93.05,3.00037361]
[1772657744218,0.02250305,93.102,93.052,3.00037361]
[1772657744619,0.53728376,93.107,93.052,3.00037361]
[1772657745706,0.28432314,93.106,93.052,3.00037361]
[1772657746210,0.02047133,93.105,93.046,3.00037361]
[1772657747225,0.02047133,93.102,93.046,3.00037361]
[1772657747428,0.02047133,93.102,93.045,10.74748777]
[1772657747820,0.02047133,93.102,93.046,3.00037361]
[1772657748215,0.02047133,93.102,93.033,42.9951205]
[1772657748216,0.02047133,93.102,93.048,3.00037361]
[1772657750412,44.92026315,93.132,93.053,3.28469675]
[1772657750929,6.59472115,93.146,93.053,3.28469675]
[1772657752012,0.28432314,93.145,93.053,3.28469675]
[1772657752413,0.28432314,93.145,93.058,3.28469675]
[1772657752715,6.59472115,93.146,93.058,3.28469675]
[1772657752911,0.28432314,93.145,93.058,3.28469675]
[1772657753111,6.59472115,93.146,93.07,0.28432314]
[1772657753429,6.59472115,93.146,93.083,3.00037361]
[1772657753614,44.92026315,93.177,93.089,3.00037361]
[1772657753815,0.28432314,93.176,93.091,3.00037361]
[1772657754010,44.92026315,93.177,93.091,3.00037361]
[1772657754334,44.92026315,93.177,93.101,3.00037361]
[1772657754512,0.28432314,93.176,93.103,3.00037361]
[1772657754711,44.92026315,93.177,93.103,3.00037361]
[1772657755427,0.28432314,93.176,93.103,3.00037361]
[1772657755635,44.92026315,93.177,93.103,3.00037361]
[1772657755830,0.28432314,93.176,93.105,3.00037361]
[1772657756030,0.28432314,93.179,93.105,3.00037361]
[1772657757022,0.28432314,93.179,93.107,3.00037361]
[1772657759031,0.28432314,93.179,93.109,3.00037361]
[1772657761147,0.28432314,93.179,93.111,3.00037361]
[1772657763125,0.28432314,93.179,93.113,3.00037361]
[1772657764236,0.28432314,93.179,93.107,10.74022403]
[1772657764422,0.28432314,93.179,93.105,0.6451]
[1772657764423,5.10909883,93.171,93.106,10.74044637]
[1772657764736,0.28432314,93.158,93.105,0.6451]
[1772657764933,0.28432314,93.156,93.106,10.74044637]
[1772657765120,0.28432314,93.156,93.105,0.6451]
[1772657765543,0.28432314,93.156,93.105,11.38557825]
[1772657766428,0.28432314,93.153,93.105,0.6451]
[1772657767940,0.28432314,93.148,93.105,0.6451]
[1772657770527,5.10909883,93.148,93.105,0.6451]
[1772657772039,0.28432314,93.148,93.105,0.6451]
[1772657772542,3.69383402,93.149,93.105,0.6451]
[1772657772936,0.28432314,93.148,93.105,0.6451]
[1772657773341,0.28432314,93.143,93.105,0.6451]
[1772657776331,0.28432314,93.138,93.105,0.6451]
[1772657776546,0.28432314,93.136,93.105,0.6451]
[1772657777130,0.28432314,93.136,93.105,3.64547361]
[1772657777334,44.92026315,93.173,93.106,3.00037361]
[1772657777939,3.69383402,93.17,93.106,3.00037361]
[1772657778136,0.28432314,93.169,93.106,3.00037361]
[1772657778651,3.69383402,93.17,93.108,3.00037361]
[1772657778840,0.28432314,93.169,93.108,3.00037361]
[1772657779537,3.69383402,93.17,93.108,3.00037361]
[1772657779868,0.28432314,93.168,93.108,3.00037361]
[1772657780145,5.10909883,93.164,93.101,3.00037361]
[1772657780349,0.28432314,93.16,93.101,3.00037361]
[1772657780730,0.28432314,93.149,93.041,3.00037361]
[1772657780947,8.80293285,93.144,93.047,3.00037361]
[1772657781963,44.92026315,93.148,93.06,3.00037361]
[1772657781964,0.14216157,93.147,93.06,3.00037361]
[1772657782261,0.28432314,93.147,93.06,3.00037361]
[1772657782454,45.20458629,93.147,93.06,3.00037361]
[1772657782656,44.92026315,93.147,93.06,3.00037361]
[1772657782967,0.14216157,93.146,93.062,3.28469675]
[1772657783455,0.14216157,93.167,93.065,3.28469675]
[1772657783662,3.69383402,93.168,93.065,3.28469675]
[1772657783865,0.14216157,93.167,93.075,0.28432314]
[1772657784042,0.14216157,93.167,93.086,3.00037361]
[1772657784354,3.69383402,93.168,93.092,3.00037361]
[1772657784947,0.14216157,93.167,93.092,3.00037361]
[1772657785956,0.28432314,93.167,93.092,3.00037361]
[1772657786347,0.28432314,93.167,93.094,3.00037361]
[1772657787968,0.28432314,93.167,93.096,3.00037361]
[1772657788262,44.92026315,93.166,93.096,3.00037361]
[1772657788562,0.28432314,93.165,93.096,3.00037361]
[1772657789357,44.92026315,93.166,93.1,3.00037361]
[1772657790969,44.92026315,93.166,93.102,3.00037361]
[1772657792146,44.92026315,93.166,93.105,3.28469675]
[1772657792461,6.60600289,93.171,93.11,3.00037361]
[1772657792847,0.2,93.18,93.112,3.28469675]
[1772657793465,0.2,93.18,93.12,3.00037361]
[1772657795162,0.2,93.18,93.122,3.00037361]
[1772657797870,0.2,93.18,93.124,3.00037361]
[1772657800159,0.2,93.18,93.126,3.00037361]
[1772657802871,0.28432314,93.179,93.128,3.00037361]
[1772657803266,0.28432314,93.177,93.127,10.73802441]
[1772657803771,0.28432314,93.177,93.128,3.00037361]
[1772657805264,0.28432314,93.175,93.12,0.6451]
[1772657805466,0.28432314,93.16,93.097,3.00037361]
[1772657805869,0.28432314,93.16,93.1,3.00037361]
[1772657806375,0.28432314,93.159,93.1,3.00037361]
[1772657806675,5.10909883,93.163,93.1,3.00037361]
[1772657806857,0.28432314,93.163,93.1,3.00037361]
[1772657807570,3.69383402,93.173,93.102,3.00037361]
[1772657807749,0.14216157,93.172,93.102,3.00037361]
[1772657808565,0.28432314,93.17,93.102,3.00037361]
[1772657809671,0.28432314,93.17,93.104,3.00037361]
[1772657809885,0.28432314,93.174,93.104,3.00037361]
[1772657810255,26.99962639,93.126,93.105,2.85146588]
[1772657810457,20.76133769,93.126,93.104,2.85146588]
[1772657810975,20.76133769,93.126,93.103,10.74079245]
[1772657811369,20.76133769,93.126,93.104,2.85146588]
[1772657812160,20.76133769,93.126,93.106,2.85146588]
[1772657812973,30.0,93.124,93.106,2.85146588]
[1772657814072,29.94631099,93.124,93.106,2.85146588]
[1772657814271,29.94631099,93.124,93.097,2.85146588]
[1772657814576,2.88474425,93.123,93.097,2.85146588]
[1772657814765,30.0,93.12,93.097,2.85146588]
[1772657815475,2.88474425,93.119,93.089,2.85146588]
[1772657815678,30.0,93.116,93.089,2.85146588]
[1772657816272,30.0,93.116,93.03,47.82145324]
[1772657816273,3.16906739,93.115,93.068,10.74483173]
[1772657816475,3.16906739,93.115,93.056,2.85146588]
[1772657816782,30.0,93.116,93.042,2.85146588]
[1772657816783,3.16906739,93.108,93.042,2.85146588]
[1772657818383,3.16906739,93.102,93.044,2.85146588]
[1772657819470,3.16906739,93.091,93.044,2.85146588]
[1772657819875,30.0,93.097,93.044,2.85146588]
[1772657820362,2.88474425,93.119,93.053,2.85146588]
[1772657820674,2.88474425,93.119,93.061,2.85146588]
[1772657820983,20.76133769,93.126,93.061,2.85146588]
[1772657822258,23.64608194,93.126,93.061,2.85146588]
[1772657822655,2.88474425,93.125,93.063,2.85146588]
[1772657822872,20.76133769,93.126,93.071,2.85146588]
[1772657824068,2.88474425,93.125,93.071,2.85146588]
[1772657825270,20.76133769,93.126,93.073,2.85146588]
[1772657826171,2.88474425,93.125,93.073,2.85146588]
[1772657827383,2.88474425,93.124,93.075,2.85146588]
[1772657830378,2.88474425,93.124,93.077,2.85146588]
[1772657831995,2.88474425,93.114,93.076,10.7439082]
[1772657832205,2.88474425,93.106,93.076,10.7439082]
[1772657832696,2.88474425,93.106,93.071,10.74437618]
[1772657832873,2.88474425,93.096,93.062,10.74552448]
[1772657833772,2.88474425,93.096,93.063,2.85146588]
[1772657833976,2.88474425,93.096,93.062,10.74552448]
[1772657834179,2.88474425,93.096,93.044,26.86882401]
[1772657834180,2.88474425,93.086,93.048,13.59860714]
[1772657834575,2.88474425,93.086,93.022,2.85146588]
[1772657834796,3.16906739,93.073,93.004,2.85146588]
[1772657835370,0.28432314,93.098,93.01,2.85146588]
[1772657835575,104.9,93.113,93.01,2.85146588]
[1772657835576,0.28432314,93.084,93.01,2.85146588]
[1772657835877,2.88474425,93.083,93.01,2.85146588]
[1772657836573,2.88474425,93.083,93.012,2.85146588]
[1772657836883,2.88474425,93.083,93.015,3.13578902]
[1772657837798,0.28432314,93.099,93.015,3.13578902]
[1772657837996,3.16906739,93.098,93.015,3.13578902]
[1772657838492,3.02690582,93.098,93.015,3.13578902]
[1772657838697,2.85772201,93.096,93.02,3.03690099]
[1772657839776,2.85772201,93.096,93.03,2.75257785]
[1772657841695,2.85772201,93.106,93.03,2.75257785]
[1772657841894,2.85772201,93.106,93.04,2.75257785]
[1772657844005,2.85772201,93.096,93.045,2.75257785]
[1772657846101,2.90335716,93.124,93.047,2.96026668]
[1772657846305,2.90335716,93.106,93.047,2.96026668]
[1772657847008,2.90335716,93.122,93.05,3.24458982]
[1772657847314,2.90335716,93.125,93.05,3.24458982]
[1772657848391,2.90335716,93.125,93.06,2.96026668]
[1772657851400,2.90335716,93.125,93.062,2.96026668]
[1772657853196,2.90335716,93.121,93.062,2.96026668]
[1772657853399,2.90335716,93.117,93.062,2.96026668]